fUSD/lending_fUSD_20250125
["ID","MTS","AMOUNT","RATE_DAILY","PERIOD"]
[350287528,1737769844258,-500.0,0.00016711,2]
[350287529,1737769844267,-537.68047674,0.00016711,2]
[350287530,1737769844276,-500.0,0.00016711,2]
[350287531,1737769844286,-464.14342379,0.00016712,2]
[350287532,1737769844295,-521.29218902,0.00016712,2]
[350287534,1737769844305,-473.47125805,0.00016712,2]
[350287535,1737769844314,-500.0,0.00016712,2]
[350287536,1737769844324,-500.0,0.00016712,2]
[350287537,1737769844333,-500.0,0.00016712,2]
[350287538,1737769844343,-500.0,0.00016712,2]
[350287539,1737769844352,-500.0,0.00016712,2]
[350287540,1737769844361,-538.52398958,0.00016712,2]
[350287541,1737769844371,-500.0,0.00016712,2]
[350287542,1737769844380,-254.78248718,0.00016712,2]
[350287543,1737769844389,-514.91882664,0.00016712,2]
[350287544,1737769844399,-500.0,0.00016712,2]
[350287545,1737769844408,-519.2,0.00016712,2]
[350287546,1737769844418,-863.29,0.00016712,2]
[350287547,1737769844427,-1033.74,0.00016712,2]
[350287548,1737769844437,-694.04,0.00016712,2]
[350287549,1737769844447,-1210.79,0.00016712,2]
[350287550,1737769844456,-1419.56,0.00016712,2]
[350287551,1737769844466,-500.0,0.00016712,2]
[350287552,1737769844476,-1263.23,0.00016712,2]
[350287553,1737769844485,-500.0,0.00016712,2]
[350287554,1737769844495,-500.0,0.00016712,2]
[350287555,1737769844504,-589.8706199,0.00016712,2]
[350287556,1737769844513,-712.33,0.00016712,2]
[350287557,1737769844523,-181.2966543,0.00016712,2]
[350287558,1737769844532,-500.0,0.00016712,2]
[350287559,1737769844542,-500.0,0.00016712,2]
[350287560,1737769844552,-500.0,0.00016712,2]
[350287561,1737769844562,-500.0,0.00016712,2]
[350287562,1737769844572,-500.0,0.00016712,2]
[350287563,1737769844581,-500.0,0.00016712,2]
[350287564,1737769844590,-649.85,0.00016712,2]
[350287565,1737769844599,-588.51,0.00016712,2]
[350287566,1737769844608,-944.84,0.00016712,2]
[350287567,1737769844617,-511.38,0.00016712,2]
[350287568,1737769844627,-601.49111038,0.00016712,2]
[350287569,1737769844636,-500.0,0.00016712,2]
[350287570,1737769844645,-500.0,0.00016712,2]
[350287571,1737769844654,-500.0,0.00016712,2]
[350287572,1737769844663,-956.78,0.00016712,2]
[350287573,1737769844672,-500.0,0.00016712,2]
[350287574,1737769844682,-500.0,0.00016712,2]
[350287575,1737769844693,-810.83,0.00016712,2]
[350287576,1737769844703,-151.66,0.00016724,2]
[350287577,1737769844713,-500.0,0.00016773,2]
[350287578,1737769844723,-157.44,0.00016813,2]
[350287579,1737769844733,-500.0,0.00016848,2]
[350287580,1737769844742,-500.0,0.00016848,2]
[350287581,1737769844752,-500.0,0.00016848,2]
[350287582,1737769844761,-500.0,0.00016848,2]
[350287583,1737769844770,-500.0,0.00016848,2]
[350287584,1737769844779,-500.0,0.00016848,2]
[350287585,1737769844789,-500.0,0.00016848,2]
[350287586,1737769844799,-500.0,0.00016848,2]
[350287587,1737769844810,-500.0,0.00016848,2]
[350287588,1737769844819,-500.0,0.00016848,2]
[350287589,1737769844830,-500.0,0.00016848,2]
[350287590,1737769844839,-500.0,0.00016848,2]
[350287591,1737769844848,-500.0,0.00016848,2]
[350287592,1737769844858,-500.0,0.00016848,2]
[350287593,1737769844868,-500.0,0.00016848,2]
[350287594,1737769844878,-500.0,0.00016848,2]
[350287595,1737769844887,-500.0,0.00016848,2]
[350287596,1737769844896,-500.0,0.00016848,2]
[350287597,1737769844905,-500.0,0.00016848,2]
[350287598,1737769844915,-500.0,0.00016848,2]
[350287599,1737769844925,-519.60367868,0.00016848,2]
[350287600,1737769844934,-500.0,0.00016848,2]
[350287601,1737769844943,-500.0,0.00016848,2]
[350287602,1737769844952,-500.0,0.00016848,2]
[350287603,1737769844962,-500.0,0.00016848,2]
[350287604,1737769844971,-500.0,0.00016848,2]
[350287605,1737769844979,-500.0,0.00016848,2]
[350287606,1737769844988,-500.0,0.00016848,2]
[350287607,1737769844998,-520.34865349,0.00016848,2]
[350287608,1737769845008,-501.98521863,0.00016848,2]
[350287609,1737769845017,-500.0,0.00016848,2]
[350287610,1737769845026,-500.0,0.00016848,2]
[350287611,1737769845035,-500.0,0.00016848,2]
[350287612,1737769845044,-240.09439495,0.00016848,2]
[350287613,1737769845053,-500.0,0.00016848,2]
[350287614,1737769845062,-500.0,0.00016848,2]
[350287615,1737769845072,-500.0,0.00016848,2]
[350287616,1737769845081,-500.0,0.00016848,2]
[350287617,1737769845091,-500.0,0.00016848,2]
[350287618,1737769845100,-500.0,0.00016848,2]
[350287619,1737769845109,-528.10283798,0.00016848,2]
[350287620,1737769845119,-500.0,0.00016848,2]
[350287621,1737769845128,-500.0,0.00016848,2]
[350287622,1737769845137,-529.03465737,0.00016848,2]
[350287623,1737769845147,-726.04,0.00016848,2]
[350287624,1737769845155,-500.0,0.00016848,2]
[350287625,1737769845165,-786.33,0.00016848,2]
[350287626,1737769845174,-530.59754685,0.00016848,2]
[350287627,1737769845183,-500.0,0.00016848,2]
[350287628,1737769845192,-500.0,0.00016848,2]
[350287629,1737769845202,-500.0,0.00016848,2]
[350287630,1737769845211,-500.0,0.00016848,2]
[350287631,1737769845221,-500.0,0.00016848,2]
[350287632,1737769845231,-500.0,0.00016848,2]
[350287633,1737769845240,-500.0,0.00016848,2]
[350287634,1737769845249,-528.94988167,0.00016848,2]
[350287635,1737769845259,-1141.35,0.00016848,2]
[350287636,1737769845268,-389.68015458,0.00016848,2]
[350287637,1737769845277,-500.0,0.00016848,2]
[350287638,1737769845287,-500.0,0.00016848,2]
[350287639,1737769845296,-247.2920516,0.00016848,2]
[350287640,1737769845306,-500.0,0.00016848,2]
[350287641,1737769845315,-375.37907292,0.00016848,2]
[350287642,1737769845325,-500.0,0.00016848,2]
[350287643,1737769845334,-324.19001756,0.00016848,2]
[350287644,1737769845343,-616.71738202,0.00016848,2]
[350287645,1737769845353,-500.0,0.00016848,2]
[350287646,1737769845362,-630.4641471,0.00016848,2]
[350287647,1737769845371,-500.0,0.00016848,2]
[350287648,1737769845380,-588.92671614,0.00016848,2]
[350287649,1737769845389,-757.05,0.00016848,2]
[350287650,1737769845398,-529.21677525,0.00016848,2]
[350287651,1737769845407,-1435.72,0.00016848,2]
[350287652,1737769845416,-632.77,0.00016848,2]
[350287653,1737769845425,-500.0,0.00016848,2]
[350287654,1737769845435,-500.0,0.00016848,2]
[350287655,1737769845444,-500.0,0.00016848,2]
[350287656,1737769845454,-530.47388806,0.00016848,2]
[350287657,1737769845463,-558.5,0.00016848,2]
[350287658,1737769845472,-500.0,0.00016848,2]
[350287659,1737769845481,-528.35665481,0.00016848,2]
[350287660,1737769845491,-540.54141328,0.00016848,2]
[350287661,1737769845500,-500.0,0.00016848,2]
[350287662,1737769845510,-500.0,0.00016848,2]
[350287663,1737769845519,-500.0,0.00016848,2]
[350287664,1737769845528,-500.0,0.00016848,2]
[350287665,1737769845537,-729.14,0.00016848,2]
[350287666,1737769845547,-500.0,0.00016848,2]
[350287667,1737769845556,-500.0,0.00016848,2]
[350287668,1737769845565,-500.0,0.00016848,2]
[350287669,1737769845574,-500.0,0.00016848,2]
[350287670,1737769845583,-500.0,0.00016848,2]
[350287671,1737769845592,-500.0,0.00016848,2]
[350287672,1737769845602,-500.0,0.00016848,2]
[350287673,1737769845611,-647.26,0.00016848,2]
[350287674,1737769845621,-518.81731384,0.00016848,2]
[350287675,1737769845629,-512.64764449,0.00016848,2]
[350287676,1737769845638,-457.41008142,0.00016848,2]
[350287677,1737769845647,-500.0,0.00016848,2]
[350287678,1737769845656,-500.0,0.00016848,2]
[350287679,1737769845666,-500.0,0.00016848,2]
[350287680,1737769845675,-500.0,0.00016848,2]
[350287681,1737769845685,-500.0,0.00016848,2]
[350287682,1737769845694,-714.31,0.00016848,2]
[350287683,1737769845704,-500.0,0.00016848,2]
[350287684,1737769845714,-500.0,0.00016848,2]
[350287685,1737769845725,-696.03,0.00016848,2]
[350287686,1737769845734,-520.44854756,0.00016848,2]
[350287687,1737769845744,-540.00592712,0.00016848,2]
[350287688,1737769845753,-500.0,0.00016848,2]
[350287689,1737769845763,-500.0,0.00016848,2]
[350287690,1737769845772,-500.0,0.00016849,2]
[350287691,1737769845781,-500.0,0.00016849,2]
[350287692,1737769845790,-322.40729577,0.00016849,2]
[350287693,1737769845800,-150.33954237,0.00016849,2]
[350287694,1737769845809,-360.84388022,0.00016849,2]
[350287695,1737769845818,-500.0,0.00016849,2]
[350287696,1737769845827,-500.0,0.00016849,2]
[350287697,1737769845837,-519.2,0.00016849,2]
[350287698,1737769845846,-863.29,0.00016849,2]
[350287699,1737769845855,-1033.74,0.00016849,2]
[350287700,1737769845865,-694.04,0.00016849,2]
[350287701,1737769845874,-1210.79,0.00016849,2]
[350287703,1737769845884,-1419.56,0.00016849,2]
[350287710,1737769845996,-500.0,0.00016849,2]
[350287712,1737769846019,-1263.23,0.00016849,2]
[350287713,1737769846028,-500.0,0.00016849,2]
[350287715,1737769846038,-169.74162681,0.00016849,2]
[350287717,1737769846047,-712.33,0.00016849,2]
[350287719,1737769846056,-357.2442306,0.00016849,2]
[350287721,1737769846065,-331.93270698,0.00016849,2]
[350287722,1737769846074,-315.10942296,0.00016849,2]
[350287723,1737769846083,-500.0,0.00016849,2]
[350287724,1737769846092,-500.0,0.00016849,2]
[350287725,1737769846102,-500.0,0.00016849,2]
[350287726,1737769846111,-649.85,0.00016849,2]
[350287727,1737769846120,-588.51,0.00016849,2]
[350287728,1737769846129,-944.84,0.00016849,2]
[350287729,1737769846139,-511.38,0.00016849,2]
[350287730,1737769846148,-500.0,0.00016849,2]
[350287731,1737769846158,-500.0,0.00016849,2]
[350287732,1737769846167,-500.0,0.00016849,2]
[350287733,1737769846176,-956.78,0.00016849,2]
[350287734,1737769846185,-500.0,0.00016849,2]
[350287735,1737769846195,-500.0,0.00016849,2]
[350287736,1737769846204,-810.83,0.00016849,2]
[350287737,1737769846213,-3681.0,0.000169,2]
[350287738,1737769846222,-678.27,0.00016914,2]
[350287739,1737769846231,-10321.24173911,0.00016956,2]
[350287740,1737769846240,-500.0,0.00016985,2]
[350287741,1737769846250,-500.0,0.00016985,2]
[350287742,1737769846259,-500.0,0.00016985,2]
[350287743,1737769846269,-500.0,0.00016985,2]
[350287744,1737769846278,-500.0,0.00016985,2]
[350287745,1737769846287,-500.0,0.00016985,2]
[350287746,1737769846296,-500.0,0.00016985,2]
[350287747,1737769846305,-500.0,0.00016985,2]
[350287748,1737769846315,-500.0,0.00016985,2]
[350287749,1737769846327,-500.0,0.00016985,2]
[350287750,1737769846338,-536.00542574,0.00016985,2]
[350287751,1737769846347,-500.0,0.00016985,2]
[350287752,1737769846357,-500.0,0.00016985,2]
[350287753,1737769846366,-500.0,0.00016985,2]
[350287754,1737769846376,-500.0,0.00016985,2]
[350287755,1737769846385,-520.50850601,0.00016985,2]
[350287756,1737769846394,-500.0,0.00016985,2]
[350287757,1737769846404,-523.06259356,0.00016985,2]
[350287758,1737769846413,-399.49308085,0.00016985,2]
[350287759,1737769846423,-619.14555509,0.00016985,2]
[350287760,1737769846432,-500.0,0.00016985,2]
[350287761,1737769846441,-500.0,0.00016985,2]
[350287762,1737769846450,-500.0,0.00016985,2]
[350287763,1737769846459,-500.0,0.00016985,2]
[350287764,1737769846468,-269.64111173,0.00016985,2]
[350287765,1737769846478,-500.0,0.00016985,2]
[350287766,1737769846487,-500.0,0.00016985,2]
[350287767,1737769846496,-509.05979799,0.00016985,2]
[350287769,1737769846506,-500.0,0.00016985,2]
[350287771,1737769846515,-500.0,0.00016985,2]
[350287773,1737769846524,-500.0,0.00016985,2]
[350287775,1737769846534,-174.8713331,0.00016985,2]
[350287777,1737769846543,-170.65325959,0.00016985,2]
[350287779,1737769846552,-500.0,0.00016985,2]
[350287780,1737769846562,-517.4729068,0.00016985,2]
[350287781,1737769846572,-524.14804905,0.00016985,2]
[350287782,1737769846581,-500.0,0.00016985,2]
[350287783,1737769846590,-500.0,0.00016985,2]
[350287784,1737769846599,-726.04,0.00016985,2]
[350287785,1737769846608,-500.0,0.00016985,2]
[350287786,1737769846617,-786.33,0.00016985,2]
[350287787,1737769846627,-500.0,0.00016985,2]
[350287788,1737769846636,-500.0,0.00016985,2]
[350287790,1737769846645,-500.0,0.00016985,2]
[350287791,1737769846655,-500.0,0.00016985,2]
[350287792,1737769846664,-500.0,0.00016985,2]
[350287793,1737769846673,-523.41163302,0.00016985,2]
[350287794,1737769846683,-500.0,0.00016985,2]
[350287795,1737769846692,-1141.35,0.00016985,2]
[350287796,1737769846702,-500.0,0.00016985,2]
[350287797,1737769846712,-500.0,0.00016985,2]
[350287798,1737769846721,-500.0,0.00016985,2]
[350287799,1737769846731,-531.18384236,0.00016985,2]
[350287800,1737769846740,-500.0,0.00016985,2]
[350287801,1737769846749,-500.0,0.00016985,2]
[350287802,1737769846759,-757.05,0.00016985,2]
[350287803,1737769846772,-1435.72,0.00016985,2]
[350287804,1737769846782,-632.77,0.00016985,2]
[350287805,1737769846792,-500.0,0.00016985,2]
[350287806,1737769846803,-500.0,0.00016985,2]
[350287807,1737769846814,-500.0,0.00016985,2]
[350287808,1737769846823,-558.5,0.00016985,2]
[350287809,1737769846832,-241.26494122,0.00016985,2]
[350287810,1737769846841,-500.0,0.00016985,2]
[350287811,1737769846851,-500.0,0.00016985,2]
[350287812,1737769846860,-500.0,0.00016985,2]
[350287813,1737769846869,-500.0,0.00016985,2]
[350287814,1737769846879,-729.14,0.00016985,2]
[350287815,1737769846888,-518.65535777,0.00016985,2]
[350287816,1737769846897,-520.53129731,0.00016985,2]
[350287817,1737769846907,-500.0,0.00016985,2]
[350287818,1737769846917,-263.59130144,0.00016985,2]
[350287819,1737769846929,-500.0,0.00016985,2]
[350287820,1737769846939,-500.0,0.00016985,2]
[350287821,1737769846949,-402.34131113,0.00016985,2]
[350287822,1737769846959,-647.26,0.00016985,2]
[350287823,1737769846969,-500.0,0.00016985,2]
[350287824,1737769846979,-616.01425812,0.00016985,2]
[350287825,1737769846988,-500.0,0.00016985,2]
[350287826,1737769846997,-287.85978139,0.00016985,2]
[350287827,1737769847007,-529.74219747,0.00016985,2]
[350287828,1737769847017,-714.31,0.00016985,2]
[350287829,1737769847027,-500.0,0.00016985,2]
[350287830,1737769847036,-323.22331874,0.00016985,2]
[350287831,1737769847047,-696.03,0.00016985,2]
[350287832,1737769847057,-500.0,0.00016985,2]
[350287833,1737769847066,-500.0,0.00016985,2]
[350287834,1737769847075,-516.25,0.00016986,2]
[350287835,1737769847084,-540.41342219,0.00016986,2]
[350287836,1737769847094,-500.0,0.00016986,2]
[350287837,1737769847103,-500.0,0.00016986,2]
[350287838,1737769847113,-519.2,0.00016986,2]
[350287839,1737769847123,-863.29,0.00016986,2]
[350287840,1737769847133,-1033.74,0.00016986,2]
[350287841,1737769847143,-694.04,0.00016986,2]
[350287842,1737769847153,-1210.79,0.00016986,2]
[350287843,1737769847164,-1419.56,0.00016986,2]
[350287844,1737769847173,-500.0,0.00016986,2]
[350287845,1737769847184,-1263.23,0.00016986,2]
[350287846,1737769847193,-500.0,0.00016986,2]
[350287847,1737769847203,-712.33,0.00016986,2]
[350287848,1737769847212,-500.0,0.00016986,2]
[350287849,1737769847222,-500.0,0.00016986,2]
[350287850,1737769847231,-500.0,0.00016986,2]
[350287851,1737769847240,-649.85,0.00016986,2]
[350287852,1737769847250,-588.51,0.00016986,2]
[350287853,1737769847259,-944.84,0.00016986,2]
[350287854,1737769847268,-511.38,0.00016986,2]
[350287855,1737769847278,-323.93,0.00016986,2]
[350287856,1737769847288,-500.0,0.00016986,2]
[350287857,1737769847297,-500.0,0.00016986,2]
[350287858,1737769847306,-956.78,0.00016986,2]
[350287859,1737769847316,-500.0,0.00016986,2]
[350287860,1737769847325,-500.0,0.00016986,2]
[350287861,1737769847335,-810.83,0.00016986,2]
[350287862,1737769847344,-21501.5690989,0.00017078,2]
[350287863,1737769847353,-246.23531029,0.00017122,2]
[350287864,1737769847362,-500.0,0.00017122,2]
[350287865,1737769847371,-443.33974304,0.00017122,2]
[350287866,1737769847381,-500.0,0.00017122,2]
[350287867,1737769847390,-526.40590947,0.00017122,2]
[350287868,1737769847399,-517.46368057,0.00017122,2]
[350287869,1737769847408,-523.21813279,0.00017122,2]
[350287870,1737769847417,-535.53260851,0.00017122,2]
[350287871,1737769847426,-640.69,0.00017122,2]
[350287872,1737769847435,-172.31153608,0.00017122,2]
[350287873,1737769847444,-355.56316015,0.00017122,2]
[350287874,1737769847454,-500.0,0.00017122,2]
[350287875,1737769847463,-500.0,0.00017122,2]
[350287876,1737769847472,-525.62532833,0.00017122,2]
[350287877,1737769847481,-500.0,0.00017122,2]
[350287878,1737769847490,-488.30401151,0.00017122,2]
[350287879,1737769847499,-263.42064222,0.00017122,2]
[350287880,1737769847508,-500.0,0.00017122,2]
[350287881,1737769847517,-523.87644322,0.00017122,2]
[350287882,1737769847527,-500.0,0.00017122,2]
[350287883,1737769847535,-500.0,0.00017122,2]
[350287884,1737769847544,-500.0,0.00017122,2]
[350287885,1737769847553,-500.0,0.00017122,2]
[350287886,1737769847562,-500.0,0.00017122,2]
[350287887,1737769847571,-500.0,0.00017122,2]
[350287888,1737769847580,-500.0,0.00017122,2]
[350287889,1737769847589,-312.49484099,0.00017122,2]
[350287890,1737769847599,-726.04,0.00017122,2]
[350287891,1737769847608,-539.64194081,0.00017122,2]
[350287892,1737769847617,-786.33,0.00017122,2]
[350287893,1737769847626,-500.0,0.00017122,2]
[350287894,1737769847635,-500.0,0.00017122,2]
[350287895,1737769847643,-500.0,0.00017122,2]
[350287896,1737769847654,-500.0,0.00017122,2]
[350287897,1737769847663,-500.0,0.00017122,2]
[350287898,1737769847672,-500.0,0.00017122,2]
[350287899,1737769847681,-1141.35,0.00017122,2]
[350287900,1737769847691,-596.15431184,0.00017122,2]
[350287901,1737769847700,-500.0,0.00017122,2]
[350287902,1737769847710,-500.0,0.00017122,2]
[350287903,1737769847719,-500.0,0.00017122,2]
[350287904,1737769847729,-500.0,0.00017122,2]
[350287905,1737769847738,-757.05,0.00017122,2]
[350287906,1737769847748,-1435.72,0.00017122,2]
[350287907,1737769847757,-632.77,0.00017122,2]
[350287908,1737769847766,-500.0,0.00017122,2]
[350287909,1737769847776,-500.0,0.00017122,2]
[350287910,1737769847786,-500.0,0.00017122,2]
[350287911,1737769847796,-558.5,0.00017122,2]
[350287912,1737769847805,-530.13908244,0.00017122,2]
[350287913,1737769847815,-500.0,0.00017122,2]
[350287914,1737769847824,-521.9420633,0.00017122,2]
[350287915,1737769847833,-522.19184487,0.00017122,2]
[350287916,1737769847842,-729.14,0.00017122,2]
[350287917,1737769847852,-500.0,0.00017122,2]
[350287918,1737769847861,-523.54417537,0.00017122,2]
[350287919,1737769847870,-500.0,0.00017122,2]
[350287920,1737769847879,-647.26,0.00017122,2]
[350287921,1737769847889,-500.0,0.00017122,2]
[350287922,1737769847898,-500.0,0.00017122,2]
[350287923,1737769847907,-714.31,0.00017122,2]
[350287924,1737769847916,-205.45898101,0.00017122,2]
[350287925,1737769847928,-696.03,0.00017122,2]
[350287926,1737769847937,-500.0,0.00017122,2]
[350287927,1737769847946,-180.42423389,0.00017122,2]
[350287928,1737769847956,-620.31,0.00017123,2]
[350287929,1737769847967,-523.2413574,0.00017123,2]
[350287930,1737769847977,-519.2,0.00017123,2]
[350287931,1737769847987,-863.29,0.00017123,2]
[350287932,1737769847996,-1033.74,0.00017123,2]
[350287933,1737769848006,-694.04,0.00017123,2]
[350287934,1737769848016,-1210.79,0.00017123,2]
[350287935,1737769848025,-1419.56,0.00017123,2]
[350287936,1737769848035,-500.0,0.00017123,2]
[350287937,1737769848045,-1263.23,0.00017123,2]
[350287938,1737769848055,-500.0,0.00017123,2]
[350287939,1737769848064,-712.33,0.00017123,2]
[350287940,1737769848074,-500.0,0.00017123,2]
[350287941,1737769848083,-500.0,0.00017123,2]
[350287942,1737769848093,-500.0,0.00017123,2]
[350287943,1737769848103,-649.85,0.00017123,2]
[350287944,1737769848113,-588.51,0.00017123,2]
[350287945,1737769848123,-944.84,0.00017123,2]
[350287946,1737769848132,-511.38,0.00017123,2]
[350287947,1737769848142,-500.0,0.00017123,2]
[350287948,1737769848151,-500.0,0.00017123,2]
[350287949,1737769848160,-956.78,0.00017123,2]
[350287950,1737769848170,-500.0,0.00017123,2]
[350287951,1737769848179,-500.0,0.00017123,2]
[350287952,1737769848188,-810.83,0.00017123,2]
[350287953,1737769848198,-5558.0,0.000172,3]
[350287954,1737769848208,-500.0,0.00017259,2]
[350287955,1737769848217,-500.0,0.00017259,2]
[350287956,1737769848227,-494.59156363,0.00017259,2]
[350287957,1737769848236,-200.52,0.00017259,2]
[350287958,1737769848246,-561.41406007,0.00017259,2]
[350287959,1737769848256,-178.3266736,0.00017259,2]
[350287960,1737769848266,-279.17188549,0.00017259,2]
[350287961,1737769848276,-529.40968118,0.00017259,2]
[350287962,1737769848286,-500.0,0.00017259,2]
[350287963,1737769848296,-500.0,0.00017259,2]
[350287964,1737769848305,-500.0,0.00017259,2]
[350287965,1737769848315,-500.0,0.00017259,2]
[350287966,1737769848324,-500.0,0.00017259,2]
[350287967,1737769848334,-726.04,0.00017259,2]
[350287968,1737769848343,-786.33,0.00017259,2]
[350287969,1737769848352,-500.0,0.00017259,2]
[350287970,1737769848362,-222.5207294,0.00017259,2]
[350287971,1737769848372,-622.63916997,0.00017259,2]
[350287972,1737769848382,-214.37568736,0.00017259,2]
[350287973,1737769848392,-500.0,0.00017259,2]
[350287974,1737769848401,-500.0,0.00017259,2]
[350287975,1737769848410,-1141.35,0.00017259,2]
[350287976,1737769848420,-500.0,0.00017259,2]
[350287977,1737769848431,-500.0,0.00017259,2]
[350287978,1737769848441,-500.0,0.00017259,2]
[350287979,1737769848450,-500.0,0.00017259,2]
[350287980,1737769848460,-757.05,0.00017259,2]
[350287981,1737769848470,-1435.72,0.00017259,2]
[350287982,1737769848479,-632.77,0.00017259,2]
[350287983,1737769848490,-500.0,0.00017259,2]
[350287984,1737769848499,-170.12911826,0.00017259,2]
[350287985,1737769848509,-500.0,0.00017259,2]
[350287986,1737769848518,-558.5,0.00017259,2]
[350287987,1737769848527,-500.0,0.00017259,2]
[350287988,1737769848537,-729.14,0.00017259,2]
[350287989,1737769848547,-500.0,0.00017259,2]
[350287990,1737769848556,-500.0,0.00017259,2]
[350287991,1737769848566,-647.26,0.00017259,2]
[350287992,1737769848576,-500.0,0.00017259,2]
[350287993,1737769848586,-500.0,0.00017259,2]
[350287994,1737769848596,-714.31,0.00017259,2]
[350287995,1737769848606,-696.03,0.00017259,2]
[350287996,1737769848615,-500.0,0.00017259,2]
[350287997,1737769848626,-519.2,0.0001726,2]
[350287998,1737769848635,-863.29,0.0001726,2]
[350287999,1737769848645,-1033.74,0.0001726,2]
[350288000,1737769848655,-694.04,0.0001726,2]
[350288001,1737769848664,-1210.79,0.0001726,2]
[350288002,1737769848674,-1419.56,0.0001726,2]
[350288003,1737769848684,-500.0,0.0001726,2]
[350288004,1737769848693,-1263.23,0.0001726,2]
[350288005,1737769848703,-500.0,0.0001726,2]
[350288006,1737769848712,-712.33,0.0001726,2]
[350288007,1737769848722,-500.0,0.0001726,2]
[350288008,1737769848731,-606.35450004,0.0001726,2]
[350288009,1737769848741,-500.0,0.0001726,2]
[350288010,1737769848750,-649.85,0.0001726,2]
[350288011,1737769848760,-588.51,0.0001726,2]
[350288012,1737769848772,-944.84,0.0001726,2]
[350288013,1737769848782,-511.38,0.0001726,2]
[350288014,1737769848795,-500.0,0.0001726,2]
[350288015,1737769848804,-500.0,0.0001726,2]
[350288016,1737769848813,-956.78,0.0001726,2]
[350288017,1737769848823,-500.0,0.0001726,2]
[350288018,1737769848832,-500.0,0.0001726,2]
[350288019,1737769848841,-810.83,0.0001726,2]
[350288020,1737769848855,-675.05681481,0.00017297,2]
[350288021,1737769848865,-501.21143477,0.000173,2]
[350288022,1737769848877,-500.0,0.00017321,2]
[350288023,1737769848886,-607.84981721,0.00017396,2]
[350288024,1737769848895,-500.0,0.00017396,2]
[350288025,1737769848905,-500.0,0.00017396,2]
[350288026,1737769848915,-500.0,0.00017396,2]
[350288027,1737769848928,-500.0,0.00017396,2]
[350288028,1737769848937,-500.0,0.00017396,2]
[350288029,1737769848947,-500.0,0.00017396,2]
[350288030,1737769848957,-726.04,0.00017396,2]
[350288031,1737769848968,-786.33,0.00017396,2]
[350288032,1737769849097,-278.77631032,0.00017396,2]
[350288033,1737769849107,-500.0,0.00017396,2]
[350288034,1737769849119,-625.95814071,0.00017396,2]
[350288035,1737769849130,-1141.35,0.00017396,2]
[350288036,1737769849141,-601.62647298,0.00017396,2]
[350288037,1737769849151,-500.0,0.00017396,2]
[350288038,1737769849160,-344.00919104,0.00017396,2]
[350288039,1737769849170,-500.0,0.00017396,2]
[350288040,1737769849180,-757.05,0.00017396,2]
[350288041,1737769849190,-1435.72,0.00017396,2]
[350288042,1737769849199,-632.77,0.00017396,2]
[350288043,1737769849209,-500.0,0.00017396,2]
[350288044,1737769849219,-500.0,0.00017396,2]
[350288045,1737769849228,-558.5,0.00017396,2]
[350288046,1737769849237,-500.0,0.00017396,2]
[350288047,1737769849247,-729.14,0.00017396,2]